fUSD/lending_fUSD_20250109
["ID","MTS","AMOUNT","RATE_DAILY","PERIOD"]
[348221299,1736398256159,-404.77501739,0.00010446,2]
[348221300,1736398256169,-500.0,0.00010446,2]
[348221301,1736398256179,-500.0,0.00010446,2]
[348221302,1736398256188,-500.0,0.00010446,2]
[348221303,1736398256197,-502.95801527,0.00010446,2]
[348221304,1736398256207,-500.0,0.00010446,2]
[348221305,1736398256216,-500.0,0.00010446,2]
[348221306,1736398256225,-506.05278059,0.00010446,2]
[348221307,1736398256234,-500.0,0.00010446,2]
[348221308,1736398256243,-500.0,0.00010446,2]
[348221309,1736398256252,-1068.42,0.00010446,2]
[348221310,1736398256260,-500.0,0.00010446,2]
[348221311,1736398256268,-500.0,0.00010446,2]
[348221312,1736398256278,-1291.41,0.00010446,2]
[348221313,1736398256288,-500.0,0.00010446,2]
[348221314,1736398256298,-500.0,0.00010446,2]
[348221315,1736398256307,-500.0,0.00010446,2]
[348221316,1736398256317,-503.56502583,0.00010446,2]
[348221317,1736398256328,-201.04025014,0.00010446,2]
[348221318,1736398256338,-500.0,0.00010446,2]
[348221319,1736398256347,-500.0,0.00010446,2]
[348221320,1736398256357,-707.4,0.00010446,2]
[348221321,1736398256367,-834.83,0.00010446,2]
[348221322,1736398256377,-500.0,0.00010446,2]
[348221323,1736398256387,-500.0,0.00010446,2]
[348221324,1736398256396,-500.0,0.00010446,2]
[348221325,1736398256405,-500.0,0.00010446,2]
[348221326,1736398256414,-500.0,0.00010446,2]
[348221327,1736398256423,-500.0,0.00010446,2]
[348221328,1736398256433,-500.0,0.00010446,2]
[348221329,1736398256442,-500.0,0.00010446,2]
[348221330,1736398256451,-493.0792018,0.00010446,2]
[348221331,1736398256460,-500.0,0.00010446,2]
[348221332,1736398256469,-1775.27,0.00010446,2]
[348221333,1736398256478,-625.45,0.00010446,2]
[348221334,1736398256487,-228.11597967,0.00010446,2]
[348221335,1736398256496,-500.0,0.00010446,2]
[348221336,1736398256507,-500.0,0.00010446,2]
[348221337,1736398256518,-504.01781334,0.00010446,2]
[348221338,1736398256528,-500.0,0.00010446,2]
[348221339,1736398256538,-500.0,0.00010446,2]
[348221340,1736398256549,-251.6339777,0.00010446,2]
[348221341,1736398256559,-500.0,0.00010446,2]
[348221342,1736398256568,-501.99336724,0.00010446,2]
[348221343,1736398256578,-500.0,0.00010446,2]
[348221344,1736398256588,-500.0,0.00010446,2]
[348221345,1736398256598,-302.86800702,0.00010446,2]
[348221346,1736398256609,-500.0,0.00010446,2]
[348221347,1736398256619,-533.26923189,0.00010446,2]
[348221348,1736398256628,-528.62,0.00010446,2]
[348221349,1736398256638,-500.0,0.00010446,2]
[348221350,1736398256648,-536.88,0.00010446,2]
[348221351,1736398256658,-500.0,0.00010446,2]
[348221352,1736398256667,-503.31675182,0.00010446,2]
[348221353,1736398256677,-505.61974463,0.00010446,2]
[348221354,1736398256687,-500.0,0.00010446,2]
[348221355,1736398256697,-500.0,0.00010446,2]
[348221356,1736398256706,-500.0,0.00010446,2]
[348221357,1736398256716,-500.0,0.00010446,2]
[348221358,1736398256726,-505.41338267,0.00010446,2]
[348221359,1736398256735,-500.0,0.00010446,2]
[348221360,1736398256745,-500.0,0.00010446,2]
[348221361,1736398256754,-500.0,0.00010446,2]
[348221362,1736398256763,-974.03,0.00010446,2]
[348221363,1736398256772,-500.0,0.00010446,2]
[348221364,1736398256782,-500.0,0.00010446,2]
[348221365,1736398256791,-500.0,0.00010446,2]
[348221366,1736398256800,-500.0,0.00010446,2]
[348221367,1736398256809,-500.0,0.00010446,2]
[348221368,1736398256818,-500.0,0.00010446,2]
[348221369,1736398256827,-500.0,0.00010446,2]
[348221370,1736398256837,-504.44689587,0.00010446,2]
[348221371,1736398256847,-500.0,0.00010446,2]
[348221372,1736398256857,-504.70464923,0.00010446,2]
[348221373,1736398256866,-509.39132598,0.00010446,2]
[348221374,1736398256876,-500.0,0.00010446,2]
[348221375,1736398256886,-991.83,0.00010446,2]
[348221376,1736398256895,-500.0,0.00010446,2]
[348221377,1736398256905,-500.0,0.00010446,2]
[348221378,1736398256915,-500.0,0.00010446,2]
[348221379,1736398256924,-500.0,0.00010446,2]
[348221380,1736398256934,-500.0,0.00010447,2]
[348221381,1736398256944,-500.0,0.00010447,2]
[348221382,1736398256953,-201.33533813,0.00010447,2]
[348221383,1736398256963,-338.938397,0.00010447,2]
[348221384,1736398256972,-500.0,0.00010447,2]
[348221385,1736398256982,-500.0,0.00010447,2]
[348221386,1736398256991,-500.0,0.00010447,2]
[348221387,1736398257001,-500.0,0.00010447,2]
[348221388,1736398257011,-500.0,0.00010447,2]
[348221389,1736398257021,-314.68876562,0.00010447,2]
[348221390,1736398257030,-500.0,0.00010447,2]
[348221391,1736398257040,-500.0,0.00010447,2]
[348221392,1736398257050,-500.0,0.00010447,2]
[348221393,1736398257060,-500.0,0.00010447,2]
[348221394,1736398257070,-500.0,0.00010447,2]
[348221395,1736398257079,-500.0,0.00010447,2]
[348221396,1736398257089,-500.0,0.00010447,2]
[348221397,1736398257098,-500.0,0.00010447,2]
[348221398,1736398257108,-500.0,0.00010447,2]
[348221399,1736398257118,-500.0,0.00010447,2]
[348221400,1736398257128,-500.0,0.00010447,2]
[348221401,1736398257138,-430.15,0.00010447,2]
[348221402,1736398257148,-500.0,0.00010447,2]
[348221403,1736398257158,-500.0,0.00010447,2]
[348221404,1736398257168,-500.0,0.00010447,2]
[348221405,1736398257178,-500.84,0.00010447,2]
[348221406,1736398257190,-500.0,0.00010447,2]
[348221407,1736398257199,-500.0,0.00010447,2]
[348221408,1736398257209,-514.82941288,0.00010447,2]
[348221409,1736398257219,-641.45302227,0.00010447,2]
[348221410,1736398257229,-500.0,0.00010447,2]
[348221411,1736398257239,-500.0,0.00010447,2]
[348221412,1736398257249,-569.08056936,0.00010447,2]
[348221413,1736398257258,-500.0,0.00010447,2]
[348221414,1736398257268,-500.0,0.00010447,2]
[348221415,1736398257277,-376.45495344,0.00010447,2]
[348221416,1736398257287,-500.0,0.00010447,2]
[348221417,1736398257297,-500.0,0.00010447,2]
[348221418,1736398257307,-500.0,0.00010447,2]
[348221419,1736398257316,-500.0,0.00010447,2]
[348221420,1736398257326,-500.0,0.00010447,2]
[348221421,1736398257336,-500.0,0.00010447,2]
[348221422,1736398257345,-365.80999798,0.00010447,2]
[348221423,1736398257523,-500.0,0.00010447,2]
[348221424,1736398257533,-500.0,0.00010447,2]
[348221425,1736398257543,-500.0,0.00010447,2]
[348221426,1736398257555,-500.0,0.00010447,2]
[348221427,1736398257564,-500.0,0.00010447,2]
[348221428,1736398257574,-500.0,0.00010447,2]
[348221429,1736398257584,-500.0,0.00010447,2]
[348221430,1736398257595,-205.67408064,0.00010447,2]
[348221431,1736398257604,-500.0,0.00010447,2]
[348221432,1736398257613,-500.0,0.00010447,2]
[348221433,1736398257623,-500.0,0.00010447,2]
[348221434,1736398257632,-525.33,0.00010447,2]
[348221435,1736398257642,-160.53444744,0.00010447,2]
[348221436,1736398257651,-500.0,0.00010447,2]
[348221437,1736398257660,-500.0,0.00010447,2]
[348221438,1736398257670,-500.0,0.00010447,2]
[348221439,1736398257679,-500.0,0.00010447,2]
[348221440,1736398257688,-500.0,0.00010447,2]
[348221441,1736398257698,-500.0,0.00010447,2]
[348221442,1736398257708,-500.0,0.00010447,2]
[348221443,1736398257717,-500.0,0.00010447,2]
[348221444,1736398257727,-500.0,0.00010447,2]
[348221445,1736398257737,-514.27489801,0.00010447,2]
[348221446,1736398257746,-500.0,0.00010447,2]
[348221447,1736398257756,-501.07841191,0.00010447,2]
[348221448,1736398257766,-500.0,0.00010447,2]
[348221449,1736398257775,-302.3514128,0.00010447,2]
[348221450,1736398257785,-500.0,0.00010447,2]
[348221451,1736398257794,-500.0,0.00010447,2]
[348221452,1736398257803,-500.0,0.00010447,2]
[348221453,1736398257812,-500.0,0.00010447,2]
[348221454,1736398257821,-500.0,0.00010447,2]
[348221455,1736398257830,-317.75700499,0.00010447,2]
[348221456,1736398257840,-500.0,0.00010447,2]
[348221457,1736398257849,-500.0,0.00010447,2]
[348221458,1736398257859,-506.75276599,0.00010447,2]
[348221459,1736398257868,-500.0,0.00010447,2]
[348221460,1736398257878,-501.4933023,0.00010447,2]
[348221461,1736398257887,-504.85762711,0.00010447,2]
[348221462,1736398257897,-187.37459291,0.00010447,2]
[348221463,1736398257908,-657.5,0.00010447,2]
[348221464,1736398257919,-500.0,0.00010447,2]
[348221465,1736398257928,-1649.36,0.00010447,2]
[348221466,1736398257937,-255.26906167,0.00010447,2]
[348221467,1736398257947,-500.0,0.00010447,2]
[348221468,1736398257956,-502.06430385,0.00010447,2]
[348221469,1736398257966,-500.0,0.00010447,2]
[348221470,1736398257975,-1567.76,0.00010447,2]
[348221471,1736398257984,-1328.43,0.00010447,2]
[348221472,1736398257994,-500.0,0.00010447,2]
[348221473,1736398258004,-500.0,0.00010447,2]
[348221474,1736398258015,-500.0,0.00010447,2]
[348221475,1736398258026,-1401.65,0.00010447,2]
[348221476,1736398258035,-500.99393048,0.00010447,2]
[348221477,1736398258044,-500.0,0.00010447,2]
[348221478,1736398258054,-500.0,0.00010447,2]
[348221479,1736398258064,-500.0,0.00010447,2]
[348221480,1736398258074,-500.0,0.00010447,2]
[348221481,1736398258083,-500.0,0.00010447,2]
[348221482,1736398258092,-500.0,0.00010447,2]
[348221483,1736398258102,-500.0,0.00010447,2]
[348221484,1736398258111,-500.0,0.00010447,2]
[348221485,1736398258121,-503.2828646,0.00010447,2]
[348221486,1736398258131,-504.10041748,0.00010447,2]
[348221487,1736398258140,-503.64316853,0.00010447,2]
[348221488,1736398258149,-500.0,0.00010447,2]
[348221489,1736398258158,-500.0,0.00010447,2]
[348221490,1736398258166,-614.47,0.00010447,2]
[348221491,1736398258175,-500.0,0.00010447,2]
[348221492,1736398258184,-500.0,0.00010447,2]
[348221493,1736398258193,-500.0,0.00010447,2]
[348221494,1736398258202,-777.24,0.00010447,2]
[348221495,1736398258210,-500.0,0.00010447,2]
[348221496,1736398258219,-500.0,0.00010447,2]
[348221497,1736398258228,-500.0,0.00010447,2]
[348221498,1736398258236,-260.31149286,0.00010447,2]
[348221499,1736398258246,-500.0,0.00010447,2]
[348221500,1736398258255,-1099.64,0.00010447,2]
[348221501,1736398258264,-503.20446041,0.00010447,2]
[348221502,1736398258273,-500.0,0.00010447,2]
[348221503,1736398258281,-162.64530288,0.000105,2]
[348221504,1736398258291,-651.51,0.00010545,2]
[348221505,1736398258300,-1514.68,0.00010545,2]
[348221506,1736398258309,-702.38,0.00010545,2]
[348221507,1736398258319,-1049.37,0.00010545,2]
[348221508,1736398258329,-500.0,0.00010545,2]
[348221509,1736398258338,-500.0,0.00010545,2]
[348221510,1736398258348,-777.15,0.00010545,2]
[348221511,1736398258358,-962.32,0.00010545,2]
[348221512,1736398258367,-500.0,0.00010545,2]
[348221513,1736398258376,-500.0,0.00010545,2]
[348221514,1736398258387,-500.0,0.00010545,2]
[348221515,1736398258397,-500.0,0.00010545,2]
[348221516,1736398258406,-500.0,0.00010545,2]
[348221517,1736398258416,-639.14,0.00010545,2]
[348221518,1736398258426,-1093.98,0.00010545,2]
[348221519,1736398258435,-500.0,0.00010545,2]
[348221520,1736398258444,-500.0,0.00010545,2]
[348221521,1736398258454,-963.71,0.00010545,2]
[348221522,1736398258463,-500.0,0.00010545,2]
[348221523,1736398258472,-500.0,0.00010546,2]
[348221524,1736398258480,-1234.27,0.00010546,2]
[348221525,1736398258488,-1182.84,0.00010546,2]
[348221526,1736398258497,-587.07,0.00010546,2]
[348221527,1736398258509,-587.07,0.00010546,2]
[348221528,1736398258518,-500.0,0.00010546,2]
[348221529,1736398258527,-500.0,0.00010546,2]
[348221530,1736398258537,-500.0,0.00010546,2]
[348221531,1736398258546,-500.0,0.00010546,2]
[348221532,1736398258555,-933.34,0.00010546,2]
[348221533,1736398258564,-1092.32,0.00010546,2]
[348221534,1736398258573,-3021.64,0.00010546,2]
[348221535,1736398258580,-818.73,0.00010547,2]
[348221536,1736398258586,-500.0,0.00010547,2]
[348221537,1736398258593,-500.0,0.00010547,2]
[348221538,1736398258600,-1349.54,0.00010547,2]
[348221539,1736398258609,-500.0,0.00010547,2]
[348221540,1736398258619,-500.0,0.00010547,2]
[348221541,1736398258628,-500.0,0.00010547,2]
[348221542,1736398258638,-500.0,0.00010547,2]
[348221543,1736398258647,-1493.48,0.00010547,2]
[348221544,1736398258656,-505.99,0.00010547,2]
[348221545,1736398258666,-500.0,0.00010547,2]
[348221546,1736398258675,-500.0,0.00010547,2]
[348221547,1736398258684,-686.67,0.00010547,2]
[348221548,1736398258693,-869.64,0.00010547,2]
[348221549,1736398258703,-500.0,0.00010547,2]
[348221550,1736398258713,-476.76,0.00010547,2]
[348221551,1736398258723,-1183.5,0.00010547,2]
[348221552,1736398258732,-942.01,0.00010547,2]
[348221553,1736398258742,-322.18097,0.00010547,2]
[348221554,1736398258751,-2163.49,0.00010547,2]
[348221555,1736398258760,-1797.54,0.00010547,2]
[348221556,1736398258769,-861.542873,0.00010547,2]
[348221557,1736398258778,-500.0,0.00010547,2]
[348221558,1736398258788,-986.78,0.00010547,2]
[348221559,1736398258797,-500.0,0.00010547,2]
[348221560,1736398258807,-500.0,0.00010547,2]
[348221561,1736398258815,-500.0,0.00010547,2]
[348221562,1736398258824,-500.0,0.00010547,2]
[348221563,1736398258834,-500.0,0.00010547,2]
[348221564,1736398258844,-150.0,0.00010666,2]
[348221565,1736398258853,-151.69,0.00010666,2]
[348221566,1736398258862,-150.0,0.00010666,2]
[348221567,1736398258872,-150.0,0.00010666,2]
[348221568,1736398258881,-429.73662246,0.00010672,2]
[348221569,1736398258891,-500.0,0.00010684,2]
[348221570,1736398258900,-1804.4167693,0.00010701,2]
[348221571,1736398258910,-500.0,0.0001072,2]
[348221572,1736398258919,-500.0,0.0001072,2]
[348221573,1736398258928,-629.30867837,0.0001072,2]
[348221574,1736398258937,-500.0,0.0001072,2]
[348221575,1736398258947,-500.0,0.0001072,2]
[348221576,1736398258956,-500.0,0.0001072,2]
[348221577,1736398258965,-500.0,0.0001072,2]
[348221578,1736398258975,-500.0,0.0001072,2]
[348221579,1736398258984,-500.0,0.0001072,2]
[348221580,1736398258993,-500.0,0.0001072,2]
[348221581,1736398259003,-500.0,0.0001072,2]
[348221582,1736398259012,-500.0,0.0001072,2]
[348221583,1736398259022,-500.0,0.0001072,2]
[348221584,1736398259031,-500.0,0.0001072,2]
[348221585,1736398259040,-500.0,0.0001072,2]
[348221586,1736398259051,-500.0,0.0001072,2]
[348221587,1736398259061,-586.57,0.0001072,2]
[348221588,1736398259071,-500.0,0.0001072,2]
[348221589,1736398259080,-500.0,0.0001072,2]
[348221590,1736398259089,-500.0,0.0001072,2]
[348221591,1736398259098,-891.57,0.0001072,2]
[348221592,1736398259107,-2800.55,0.0001072,2]
[348221593,1736398259116,-500.0,0.0001072,2]
[348221594,1736398259125,-500.0,0.0001072,2]
[348221595,1736398259134,-500.0,0.0001072,2]
[348221596,1736398259142,-500.0,0.0001072,2]
[348221597,1736398259151,-500.0,0.0001072,2]
[348221598,1736398259160,-500.0,0.0001072,2]
[348221599,1736398259169,-500.0,0.0001072,2]
[348221600,1736398259178,-596.27,0.0001072,2]
[348221601,1736398259187,-500.0,0.0001072,2]
[348221602,1736398259196,-500.0,0.0001072,2]
[348221603,1736398259205,-500.0,0.0001072,2]
[348221604,1736398259214,-500.0,0.0001072,2]
[348221605,1736398259223,-500.0,0.0001072,2]
[348221606,1736398259232,-500.0,0.0001072,2]
[348221607,1736398259241,-500.0,0.0001072,2]
[348221608,1736398259250,-500.0,0.0001072,2]
[348221609,1736398259259,-500.0,0.0001072,2]
[348221610,1736398259268,-504.2068801,0.0001072,2]
[348221611,1736398259277,-471.03,0.0001072,2]
[348221612,1736398259287,-500.0,0.0001072,2]
[348221613,1736398259296,-2330.18,0.0001072,2]
[348221614,1736398259305,-500.0,0.0001072,2]
[348221615,1736398259314,-500.0,0.0001072,2]
[348221616,1736398259323,-500.0,0.0001072,2]
[348221617,1736398259332,-500.0,0.0001072,2]
[348221618,1736398259341,-500.0,0.0001072,2]
[348221619,1736398259351,-500.0,0.0001072,2]
[348221620,1736398259361,-500.0,0.0001072,2]
[348221621,1736398259371,-500.0,0.0001072,2]
[348221622,1736398259380,-500.0,0.0001072,2]
[348221623,1736398259390,-200.80790068,0.0001072,2]
[348221624,1736398259399,-500.0,0.0001072,2]
[348221625,1736398259408,-500.0,0.0001072,2]
[348221626,1736398259416,-507.90148192,0.0001072,2]
[348221627,1736398259425,-500.0,0.0001072,2]
[348221628,1736398259435,-1068.42,0.0001072,2]
[348221629,1736398259444,-500.0,0.0001072,2]
[348221630,1736398259452,-1291.41,0.0001072,2]
[348221631,1736398259462,-500.0,0.0001072,2]
[348221632,1736398259471,-500.0,0.0001072,2]
[348221633,1736398259479,-500.0,0.0001072,2]
[348221634,1736398259488,-500.0,0.0001072,2]
[348221635,1736398259497,-500.0,0.0001072,2]
[348221636,1736398259507,-500.0,0.0001072,2]
[348221637,1736398259516,-707.4,0.0001072,2]
[348221638,1736398259525,-834.83,0.0001072,2]
[348221639,1736398259534,-500.0,0.0001072,2]
[348221640,1736398259543,-500.0,0.0001072,2]
[348221641,1736398259553,-500.0,0.0001072,2]
[348221642,1736398259562,-500.0,0.0001072,2]
[348221643,1736398259571,-500.0,0.0001072,2]
[348221644,1736398259584,-1775.27,0.0001072,2]
[348221645,1736398259594,-500.0,0.0001072,2]
[348221646,1736398259603,-500.0,0.0001072,2]
[348221647,1736398259613,-500.0,0.0001072,2]
[348221648,1736398259623,-500.0,0.0001072,2]
[348221649,1736398259632,-500.0,0.0001072,2]
[348221650,1736398259641,-500.0,0.0001072,2]
[348221651,1736398259651,-500.0,0.0001072,2]
[348221652,1736398259660,-500.0,0.0001072,2]
[348221653,1736398259670,-536.88,0.0001072,2]
[348221654,1736398259679,-500.0,0.0001072,2]
[348221655,1736398259688,-507.99216678,0.0001072,2]
[348221656,1736398259698,-500.0,0.0001072,2]
[348221657,1736398259707,-500.0,0.0001072,2]
[348221658,1736398259717,-500.0,0.0001072,2]
[348221659,1736398259726,-500.0,0.0001072,2]
[348221660,1736398259736,-974.03,0.0001072,2]
[348221661,1736398259745,-500.0,0.0001072,2]
[348221662,1736398259755,-530.58961528,0.0001072,2]
[348221663,1736398259765,-500.0,0.0001072,2]
[348221664,1736398259775,-500.0,0.0001072,2]
[348221665,1736398259785,-500.0,0.0001072,2]
[348221666,1736398259794,-500.0,0.0001072,2]
[348221667,1736398259803,-500.0,0.0001072,2]
[348221668,1736398259812,-500.0,0.0001072,2]
[348221669,1736398259867,-991.83,0.0001072,2]
[348221670,1736398259878,-500.0,0.0001072,2]
[348221671,1736398259888,-500.0,0.0001072,2]
[348221672,1736398259897,-500.0,0.0001072,2]
[348221673,1736398259907,-500.0,0.00010721,2]
[348221674,1736398259916,-517.77098896,0.00010721,2]
[348221675,1736398259926,-500.0,0.00010721,2]
[348221676,1736398259936,-500.0,0.00010721,2]
[348221677,1736398259946,-500.0,0.00010721,2]
[348221678,1736398259955,-477.55641276,0.00010721,2]
[348221679,1736398259964,-500.0,0.00010721,2]
[348221680,1736398259974,-379.45,0.00010721,2]
[348221681,1736398259984,-500.0,0.00010721,2]
[348221682,1736398259993,-555.75189082,0.00010721,2]
[348221683,1736398260003,-500.0,0.00010721,2]
[348221684,1736398260012,-500.0,0.00010721,2]
[348221685,1736398260022,-500.0,0.00010721,2]
[348221686,1736398260031,-500.0,0.00010721,2]
[348221687,1736398260039,-500.0,0.00010721,2]
[348221688,1736398260048,-524.91243451,0.00010721,2]
[348221689,1736398260058,-506.93765194,0.00010721,2]
[348221690,1736398260067,-500.0,0.00010721,2]
[348221691,1736398260076,-500.0,0.00010721,2]
[348221692,1736398260086,-500.0,0.00010721,2]
[348221693,1736398260094,-500.0,0.00010721,2]
[348221694,1736398260103,-500.0,0.00010721,2]
[348221695,1736398260112,-500.0,0.00010721,2]
[348221696,1736398260121,-500.0,0.00010721,2]
[348221697,1736398260131,-500.0,0.00010721,2]
[348221698,1736398260140,-500.0,0.00010721,2]
[348221699,1736398260149,-500.0,0.00010721,2]
[348221700,1736398260158,-500.0,0.00010721,2]
[348221701,1736398260167,-500.0,0.00010721,2]
[348221702,1736398260175,-500.0,0.00010721,2]
[348221703,1736398260184,-500.0,0.00010721,2]
[348221704,1736398260199,-500.0,0.00010721,2]
[348221705,1736398260209,-500.0,0.00010721,2]
[348221706,1736398260219,-500.0,0.00010721,2]
[348221707,1736398260228,-500.0,0.00010721,2]
[348221708,1736398260238,-500.0,0.00010721,2]
[348221709,1736398260248,-525.33,0.00010721,2]
[348221710,1736398260258,-562.85908967,0.00010721,2]
[348221711,1736398260268,-500.0,0.00010721,2]
[348221712,1736398260279,-500.0,0.00010721,2]
[348221713,1736398260289,-500.0,0.00010721,2]
[348221714,1736398260299,-500.0,0.00010721,2]
[348221715,1736398260309,-500.0,0.00010721,2]
[348221716,1736398260319,-406.06856933,0.00010721,2]
[348221717,1736398260329,-500.0,0.00010721,2]
[348221718,1736398260339,-500.0,0.00010721,2]
[348221719,1736398260349,-588.30831226,0.00010721,2]
[348221720,1736398260359,-500.0,0.00010721,2]
[348221721,1736398260369,-629.66104667,0.00010721,2]
[348221722,1736398260379,-657.5,0.00010721,2]
[348221723,1736398260388,-500.0,0.00010721,2]
[348221724,1736398260397,-1649.36,0.00010721,2]
[348221725,1736398260406,-500.0,0.00010721,2]
[348221726,1736398260415,-1567.76,0.00010721,2]
[348221727,1736398260424,-1328.43,0.00010721,2]
[348221728,1736398260434,-500.0,0.00010721,2]
[348221729,1736398260443,-500.0,0.00010721,2]
[348221730,1736398260453,-1401.65,0.00010721,2]
[348221731,1736398260462,-500.0,0.00010721,2]
[348221732,1736398260472,-500.0,0.00010721,2]
[348221733,1736398260481,-500.0,0.00010721,2]
[348221734,1736398260490,-500.0,0.00010721,2]
[348221735,1736398260500,-500.0,0.00010721,2]
[348221736,1736398260512,-500.0,0.00010721,2]
[348221737,1736398260521,-614.47,0.00010721,2]
[348221738,1736398260530,-500.0,0.00010721,2]
[348221739,1736398260538,-777.24,0.00010721,2]
[348221740,1736398260547,-500.0,0.00010721,2]
[348221741,1736398260556,-500.0,0.00010721,2]
[348221742,1736398260565,-500.0,0.00010721,2]
[348221743,1736398260575,-500.0,0.00010721,2]
[348221744,1736398260585,-1099.64,0.00010721,2]
[348221745,1736398260595,-586.89,0.00010733,2]
[348221746,1736398260604,-429.73662246,0.00010742,2]
[348221747,1736398260614,-420.0,0.00010778,2]
[348221748,1736398260623,-1004.0,0.000108,2]
[348221749,1736398260633,-2013.0,0.00010809,2]
[348221750,1736398260642,-1267.0,0.00010809,2]
[348221751,1736398260651,-635.0,0.00010809,2]
[348221752,1736398260661,-566.0,0.00010809,2]
[348221753,1736398260671,-150.0,0.00010809,2]
[348221754,1736398260680,-1861.0,0.00010809,2]
[348221755,1736398260689,-3777.0,0.00010809,2]
[348221756,1736398260699,-918.0,0.00010809,2]
[348221757,1736398260708,-820.0,0.00010809,2]
[348221758,1736398260717,-1258.0,0.00010809,2]
[348221759,1736398260727,-537.0,0.00010809,2]
[348221760,1736398260737,-3977.0,0.00010809,2]
[348221761,1736398260746,-3895.0,0.00010809,2]
[348221762,1736398260755,-1173.0,0.00010809,2]
[348221763,1736398260764,-266.371,0.00010809,2]
[348221764,1736398260773,-9622.0,0.00010809,2]
[348221765,1736398260782,-1514.68,0.00010819,2]
[348221766,1736398260791,-702.38,0.00010819,2]
[348221767,1736398260800,-1049.37,0.00010819,2]
[348221768,1736398260809,-500.0,0.00010819,2]
[348221769,1736398260818,-500.0,0.00010819,2]
[348221770,1736398260828,-777.15,0.00010819,2]
[348221771,1736398260838,-962.32,0.00010819,2]
[348221772,1736398260847,-500.0,0.00010819,2]
[348221773,1736398260858,-500.0,0.00010819,2]
[348221774,1736398260867,-500.0,0.00010819,2]
[348221775,1736398260876,-500.0,0.00010819,2]
[348221776,1736398260885,-500.0,0.00010819,2]
[348221777,1736398260894,-639.14,0.00010819,2]
[348221778,1736398260903,-1093.98,0.00010819,2]
[348221779,1736398260912,-500.0,0.00010819,2]
[348221780,1736398260920,-500.0,0.00010819,2]
[348221781,1736398260929,-963.71,0.00010819,2]
[348221782,1736398260939,-500.0,0.00010819,2]
[348221783,1736398260948,-163.24610594,0.0001082,2]
[348221784,1736398260957,-500.0,0.0001082,2]
[348221785,1736398260966,-1234.27,0.0001082,2]
[348221786,1736398260975,-1182.84,0.0001082,2]
[348221787,1736398260985,-587.07,0.0001082,2]
[348221788,1736398260994,-587.07,0.0001082,2]
[348221789,1736398261004,-500.0,0.0001082,2]
[348221790,1736398261013,-500.0,0.0001082,2]
[348221791,1736398261023,-500.0,0.0001082,2]
[348221792,1736398261033,-933.34,0.0001082,2]
[348221793,1736398261043,-1092.32,0.0001082,2]
[348221794,1736398261053,-3021.64,0.0001082,2]
[348221795,1736398261062,-818.73,0.00010821,2]
[348221796,1736398261071,-500.0,0.00010821,2]
[348221797,1736398261081,-500.0,0.00010821,2]
[348221798,1736398261090,-1349.54,0.00010821,2]